Cogmind - Beta 15 @@@ ROGUE MODE // 2025.09.17 @ 03:38:28 Player: shapeshifter Result: Destroyed by S-27 Virus with Autogun Performance ------------- Evolutions (5) 2500 Regions Visited (19) 3800 Robots Destroyed (83) 415 Value Destroyed (2589) 2589 Prototype IDs (241) 4820 Alien Tech Used (1) 200 Bonus (5015) 5015 TOTAL SCORE: 19339 Bonus ------- High Alert Combat Kills 92 Follower Combat Kills 523 Entered DSFs 500 Aligned with FarCom 300 Met Data Miner 300 Used Data Conduit 3000 Met Zhirov 300 Cogmind --------- Core Integrity 0/1000 Matter 236/300 Energy 99/100 System Corruption 3% Temperature Cool (0) Movement Core (50) Location -4/Proximity Caves Parts ------- > --- POWER (1) -------- (None) > --- PROPULSION (7) --- (None) > --- UTILITY (7) ------ (None) > --- WEAPON (2) ------- (None) > --- INVENTORY (5) ---- Advanced Energy Well (500) Precision Matter Filter Advanced Hacking Suite Transdimensional Reconstructor Peak State ------------ > --- POWER ------------ Micro Fission Core > --- PROPULSION ------- Nuclear Pulse Thruster Nuclear Pulse Thruster Nuclear Pulse Thruster Improved Surge Thruster Improved Surge Thruster Field Propulsion Drive Field Propulsion Drive > --- UTILITY ---------- Power Amplifier Large Storage Unit Advanced Sensor Array Improved Melee Analysis Suite Hacking Suite System Shield System Shield > --- WEAPON ----------- Flak Gun Flak Gun > --- INVENTORY -------- Light Nuclear Core VTOL Module VTOL Module Medium Storage Unit Improved Sensor Array Modified TNC Advanced ECM Suite Advanced Shield Generator System Mapper Quantum Router Authchip [Device] PSU Rigger Molecular Deconstructor [Rating: 82] Favorites ----------- Power Ion Engine Engine Ion Engine Power Core Micro Nuclear Core Reactor Antimatter Reactor Propulsion Improved Treads Treads Improved Treads Leg Potential Leg Hover Unit Improved Airjet Flight Unit Field Propulsion Drive Utility Seismic Detector Device Seismic Detector Storage High-capacity Storage Unit Processor Improved Signal Interpreter Hackware System Shield Protection Medium Armor Plating Weapon Shotgun Energy Gun Precision Shock Rifle Ballistic Gun Shotgun Ballistic Cannon Heavy Flak Cannon Launcher Missile Launcher Special Weapon Improved Plasma Cutter Impact Weapon Flail Slashing Weapon Chainsword Build | -11 -10 -10 -10 -9 -8 -7 -7 -7 -7 -7 -7 -6 -6 -6 -5 -5 -5 -5 -4 ------- Run | Yrd Mat Min Exi Min Mat Fac Was Fac Low Low Dat Pro Fac DSF Fac Upp Upp Zhi Pro Slots Evolved 10 | . . . . . 4 2 . . . . . . 2 . 2 . . . . Power . | . . . . . . . . . . . . . . . . . . . . Propulsion 5 | . . . . . 2 1 . . . . . . 1 . 1 . . . . Utility 5 | . . . . . 2 1 . . . . . . 1 . 1 . . . . Weapon . | . . . . . . . . . . . . . . . . . . . . Parts Attached 117 | 8 4 . 2 . 27 21 6 4 2 6 1 3 2 15 15 . . 1 . Power 14 | 1 . . . . 3 3 2 . . 1 . . 1 . 3 . . . . Engine 4 | 1 . . . . 2 . . . . 1 . . . . . . . . . Core 8 | . . . . . 1 3 . . . . . . 1 . 3 . . . . Reactor 2 | . . . . . . . 2 . . . . . . . . . . . . Propulsion 48 | 2 2 . . . 8 11 3 . 1 4 1 2 . 7 7 . . . . Treads 11 | 2 2 . . . 7 . . . . . . . . . . . . . . Leg 2 | . . . . . . . . . . . . 2 . . . . . . . Wheel . | . . . . . . . . . . . . . . . . . . . . Hover 11 | . . . . . . 7 3 . 1 . . . . . . . . . . Flight 24 | . . . . . 1 4 . . . 4 1 . . 7 7 . . . . Utility 33 | 3 . . 1 . 8 5 1 2 1 1 . . 1 5 4 . . 1 . Device 14 | 2 . . . . 4 . 1 1 . . . . 1 1 4 . . . . Storage 5 | 1 . . 1 . . 2 . . . 1 . . . . . . . . . Processor 5 | . . . . . 1 2 . . 1 . . . . 1 . . . . . Hackware 4 | . . . . . . . . 1 . . . . . 3 . . . . . Protection 5 | . . . . . 3 1 . . . . . . . . . . . 1 . Artifact . | . . . . . . . . . . . . . . . . . . . . Weapon 22 | 2 2 . 1 . 8 2 . 2 . . . 1 . 3 1 . . . . Energy Gun 1 | . . . . . . 1 . . . . . . . . . . . . . Energy Cannon . | . . . . . . . . . . . . . . . . . . . . Ballistic Gun 12 | 2 2 . . . 6 . . . . . . . . 2 . . . . . Ballistic Cannon 1 | . . . . . . . . . . . . . . 1 . . . . . Launcher 2 | . . . 1 . 1 . . . . . . . . . . . . . . Special Weapon 2 | . . . . . . . . 1 . . . 1 . . . . . . . Impact Weapon 1 | . . . . . . . . . . . . . . . 1 . . . . Slashing Weapon 3 | . . . . . 1 1 . 1 . . . . . . . . . . . Piercing Weapon . | . . . . . . . . . . . . . . . . . . . . Special Melee Weapon . | . . . . . . . . . . . . . . . . . . . . Unidentified Prototypes 8 | . . . . . 2 4 . . . . . 1 . . . . . 1 . Parts Lost 51 | . . . . . 11 1 . . 1 . 4 5 . 11 15 2 . . 1 Power 5 | . . . . . 2 1 . . . . . 1 . 1 . . . . . Propulsion 27 | . . . . . 6 . . . . . 2 2 . 6 11 . . . . Utility 15 | . . . . . 2 . . . 1 . 1 1 . 3 4 2 . . 1 Weapon 4 | . . . . . 1 . . . . . 1 1 . 1 . . . . . Highest Loss Streak 15 | . . . . . 3 1 . . 1 . 4 7 . 9 13 15 . . 1 To Critical Strikes . | . . . . . . . . . . . . . . . . . . . . Average Backups 13 | 5 7 8 12 16 19 11 14 15 14 13 12 10 10 12 13 1 1 1 4 Power 1 | 1 . . 2 3 1 . 1 . 1 1 1 1 . . . . . . . Propulsion 3 | 2 2 2 2 4 4 4 6 6 6 5 2 . 1 1 2 . . . . Utility 6 | . 1 3 3 6 11 6 6 7 6 6 7 7 7 10 9 1 1 1 3 Weapon 2 | 1 2 2 3 3 2 . . . . 1 1 . 1 1 1 . . . . Tool/Special . | . . . . . . . . . . . . . . . . . . . . Unused Backups 57 | . 10 2 . . 12 14 3 3 . . . . . 1 4 2 2 . 4 Power 6 | . 1 1 . . 3 1 . . . . . . . . . . . . . Propulsion 7 | . 4 . . . . 3 . . . . . . . . . . . . . Utility 37 | . 3 1 . . 7 9 2 3 . . . . . 1 4 2 2 . 3 Weapon 6 | . 2 . . . 2 1 1 . . . . . . . . . . . . Tool/Special 1 | . . . . . . . . . . . . . . . . . . . 1 Average Slot Usage (%) 88 | . 100 100 100 100 93 90 99 100 100 98 88 54 52 57 78 . . 1 3 Engine 7 | . 14 14 14 14 8 . . . . 1 7 3 . . . . . . . Core 1 | . . . . . . 6 2 . . . . . 6 3 1 . . . . Treads 17 | . 28 28 28 28 32 . . . . . . . . . . . . . . Hover 7 | . . . . . . 29 38 38 38 32 . . . . . . . . . Flight 3 | . . . . . . 6 . . . 5 38 10 6 12 33 . . . . Device 10 | . 14 14 14 14 15 7 12 8 7 7 1 . 5 3 3 . . . . Storage 9 | . 14 14 14 14 9 7 7 7 7 7 7 7 6 6 4 . . . . Processor 6 | . . . . . 6 22 17 15 22 23 23 15 13 11 4 . . . . Hackware 1 | . . . . . . . . 6 . . . . . 6 16 . . . . Ballistic Gun 15 | . 28 28 26 28 15 . . . . . . . . 1 9 . . . . Slashing Weapon 2 | . . . . . . 9 15 12 15 13 9 . . . . . . . . Peak Build Rating 82 | 7 12 12 16 18 38 63 69 71 70 70 60 60 63 70 82 8 1 12 12 Average Rating 31 | 4 11 12 14 16 30 54 67 68 68 66 48 46 47 48 64 1 . 4 9 On Entrance 31 | . 7 12 12 16 18 29 63 69 68 70 56 38 39 47 55 9 1 . 12 Naked Turns 298 | . . . . . . . . . . . . . . . . 128 97 48 25 Heaviest Build 65 | 15 17 17 53 52 65 33 45 45 44 44 28 30 27 35 35 . . 1 1 Greatest Support 92 | 40 46 46 46 46 92 45 45 45 45 45 32 60 60 60 40 3 3 3 3 Greatest Overweight (x) 2 | . . . 1 1 1 2 . . . . 1 . . 1 2 . . . . Average Overweight (x) . | . . . . 1 . . . . . . . . . . . . . . . Largest Inventory Capacity 20 | 8 8 8 20 20 20 20 15 15 15 15 15 15 15 15 15 5 5 5 5 Average Capacity 15 | 7 8 8 19 20 20 12 15 15 15 15 15 15 15 15 14 5 5 5 5 Most Carried 20 | 8 8 8 15 18 20 19 15 15 15 15 15 13 12 15 15 4 2 4 4 Average Carried 13 | 6 7 7 12 16 19 11 14 14 14 14 14 10 11 13 14 1 1 1 4 Final Capacity 20 | 8 8 8 20 20 20 15 15 15 15 15 15 15 15 15 5 5 5 5 5 Final Carried 19 | 7 8 8 15 18 19 15 15 15 15 13 14 11 12 15 5 2 . 4 4 Class Distribution -------------------- 65% | Mutant 10% | Sprinter 10% | Scout 5% | Skirmisher 4% | Hacker-Mutant Dominant Class ---------------- Mutant | -10/Materials Mutant | -10/Mines Mutant | -10/Exiles Mutant | -9/Mines Mutant | -8/Materials Scout | -7/Factory Sprinter | -7/Waste Sprinter | -7/Factory Sprinter | -7/Lower Caves Sprinter | -7/Lower Caves Sprinter | -7/Data Miner Mutant | -6/Proximity Caves Mutant | -6/Factory Mutant | -6/DSF Hacker-Mutant | -5/Factory Mutant | -5/Upper Caves Mutant | -5/Upper Caves Mutant | -5/Zhirov Mutant | -4/Proximity Caves Resources | -11 -10 -10 -10 -9 -8 -7 -7 -7 -7 -7 -7 -6 -6 -6 -5 -5 -5 -5 -4 ----------- Run | Yrd Mat Min Exi Min Mat Fac Was Fac Low Low Dat Pro Fac DSF Fac Upp Upp Zhi Pro Matter Collected 2776 | 316 141 81 . 60 1191 309 50 80 15 80 10 16 . 17 355 55 . . . Remotely 20 | 20 . . . . . . . . . . . . . . . . . . . Salvage Created 2819 | 72 59 57 . . 1435 498 . 114 97 30 22 69 . 11 355 . . . . Parts 165 | 4 4 2 . . 94 31 . 5 3 . 3 8 . . 11 . . . . Haulers Intercepted 7 | . 1 . . . 2 3 . 1 . . . . . . . . . . . Recyclers Shooed 7 | 2 . . . . 1 2 . . . . . . . . 2 . . . . Parts Field Recycled . | . . . . . . . . . . . . . . . . . . . . Retrieved Matter . | . . . . . . . . . . . . . . . . . . . . Parts Self-Destructed 19 | . . . . . . . . . 8 . . 7 . . . 1 . . 3 Prevented 4 | . . . . . . . . . 1 1 . . . . . 1 1 . . Kills | -11 -10 -10 -10 -9 -8 -7 -7 -7 -7 -7 -7 -6 -6 -6 -5 -5 -5 -5 -4 ------- Run | Yrd Mat Min Exi Min Mat Fac Was Fac Low Low Dat Pro Fac DSF Fac Upp Upp Zhi Pro Combat Hostiles Destroyed 51 | . . 2 . . 34 2 . 1 2 1 . 3 . 2 4 . . . . Melee 6 | . . . . . . 2 . 1 2 1 . . . . . . . . . Guns 21 | . . 2 . . 15 . . . . . . . . . 4 . . . . Cannons 2 | . . . . . . . . . . . . . . 2 . . . . . AOE 19 | . . . . . 19 . . . . . . . . . . . . . . Classes Destroyed 15 | 2 2 2 . . 5 2 . . 1 . . . . 1 . . . . . Worker 6 | . 1 . . . . 2 . 1 . . . . . . 2 . . . . Builder 2 | . . . . . 2 . . . . . . . . . . . . . . Tunneler 5 | 1 . . . . 2 . . . . . . . . . 2 . . . . Hauler 7 | . 1 . . . 2 3 . 1 . . . . . . . . . . . Recycler 5 | 1 . . . . . 2 . . . . . . . . 2 . . . . Operator 1 | . . . . . . 1 . . . . . . . . . . . . . Watcher 5 | . . . . . 3 2 . . . . . . . . . . . . . Swarmer 12 | . . 1 . . 2 . . . 1 1 . 3 . . 4 . . . . Grunt 22 | . . 1 . . 21 . . . . . . . . . . . . . . Sentry 8 | . . . . . 8 . . . . . . . . . . . . . . Specialist 2 | . . . . . 2 . . . . . . . . . . . . . . Hunter 2 | . . . . . 1 . . . . . . . . 1 . . . . . Programmer 4 | . . . . . . 2 . 1 1 . . . . . . . . . . Heavy 1 | . . . . . . . . . . . . . . 1 . . . . . Samaritan 1 | . . . . . . . . . 1 . . . . . . . . . . Best Kill Streak 21 | 1 1 1 . . 21 3 . 1 1 1 1 2 . 2 7 . . . . Combat Bots Only 18 | . . 1 . . 18 1 . 1 1 1 . 2 . 2 4 . . . . Max Kills in Single Turn 4 | 1 1 1 . . 4 1 . 1 1 1 1 1 . 1 1 . . . . Gunslinging . | . . . . . . . . . . . . . . . . . . . . Exploded 3 | . . . . . 3 . . . . . . . . . . . . . . Melee 1 | . . . . . . 1 . 1 1 1 . . . . . . . . . Uniques/NPCs Destroyed 1 | . . . . . . . . . . . 1 . . . . . . . . Data Miner (-7/Data Miner) Combat | -11 -10 -10 -10 -9 -8 -7 -7 -7 -7 -7 -7 -6 -6 -6 -5 -5 -5 -5 -4 -------- Run | Yrd Mat Min Exi Min Mat Fac Was Fac Low Low Dat Pro Fac DSF Fac Upp Upp Zhi Pro Hostile Shots Fired 760 | . . 6 . . 222 53 . 15 8 11 7 107 . 115 109 14 5 . 88 Missed 257 | . . 2 . . 49 29 . 7 2 4 2 41 . 41 33 2 . . 45 Hits 503 | . . 4 . . 173 24 . 8 6 7 5 66 . 74 76 12 5 . 43 Melee 19 | . . . . . . . . . . . . 1 . . . 12 5 . 1 Projectile 484 | . . 4 . . 173 24 . 8 6 7 5 65 . 74 76 . . . 42 Critical Strikes 21 | . . . . . 9 2 . 2 . 1 . 2 . 1 4 . . . . Damage Taken 8608 | . . 102 . . 2753 368 30 117 110 115 238 1104 . 1515 1396 46 23 . 691 Core 2258 | . . . . . 243 85 . 71 20 18 76 335 . 401 401 46 23 . 539 Absorbed by Shields . | . . . . . . . . . . . . . . . . . . . . Redirected to Shielding 152 | . . . . . . . . . . . . . . . . . . . 152 Regen/Repaired (Parts) 27 | . . . . . . . 25 . 2 . . . . . . . . . . Core Remaining (%) 64 | 100 . . . 100 55 . . . . . . 13 . 52 . . . . . Volleys Fired 174 | 6 11 5 2 1 114 . . . . . . 4 2 18 11 . . . . Largest 2 | 2 2 2 1 2 2 . . . . . . 1 1 2 2 . . . . Hottest 61 | 40 46 46 33 46 61 . . . . . . . . 56 56 . . . . Shots Fired 304 | 12 22 10 2 2 213 . . . . . . 4 2 20 17 . . . . Gun 265 | 12 22 10 . 2 198 . . . . . . . . 4 17 . . . . Cannon 15 | . . . . . . . . . . . . . . 15 . . . . . Launcher 17 | . . . 2 . 15 . . . . . . . . . . . . . . Special 7 | . . . . . . . . . . . . 4 2 1 . . . . . Kinetic 280 | 12 22 10 . 2 198 . . . . . . . . 19 17 . . . . Thermal . | . . . . . . . . . . . . . . . . . . . . Explosive 17 | . . . 2 . 15 . . . . . . . . . . . . . . Electromagnetic . | . . . . . . . . . . . . . . . . . . . . Robot Hit Streak 16 | 4 9 3 . 1 16 . . . . . . 5 . 4 5 . . . . Robot Miss Streak 10 | 1 7 3 . 2 4 . . . . . . 3 . 10 7 . . . . Penetration Max 1 | . . . . . 1 . . . . . . . . . . . . . . Secondary Targets 3 | . . . . . 3 . . . . . . . . . . . . . . Max Gunslinging Chain 1 | . . . . . 1 . . . . . . . . . . . . . . Shots Hit Robots 253 | 9 13 7 . 1 145 22 . 7 5 1 1 2 . 19 21 . . . . Core Hits 155 | 3 3 5 . . 82 9 . 3 2 1 1 . . 21 25 . . . . Critical Kills . | . . . . . . . . . . . . . . . . . . . . Critical Parts Destroyed . | . . . . . . . . . . . . . . . . . . . . Critical Strikes 3 | . . . . . . 2 . 1 . . . . . . . . . . . Sever 3 | . . . . . . 2 . 1 . . . . . . . . . . . Melee Attacks 77 | . . . . . 1 41 . 13 10 1 1 2 . . 8 . . . . Impact 8 | . . . . . . . . . . . . . . . 8 . . . . Slashing 69 | . . . . . 1 41 . 13 10 1 1 2 . . . . . . . Piercing . | . . . . . . . . . . . . . . . . . . . . Sneak Attacks 16 | . . . . . . 9 . 2 1 . 1 . . . 3 . . . . Combat Hostiles . | . . . . . . . . . . . . . . . . . . . . Follow-up Attacks 5 | . . . . . . . . 3 2 . . . . . . . . . . Damage Inflicted 7821 | 119 205 126 . 11 4144 1234 . 377 259 36 90 40 . 368 812 . . . . Guns 3075 | 119 205 126 . 11 2302 . . . . . . . . 42 270 . . . . Cannons 326 | . . . . . . . . . . . . . . 326 . . . . . Explosions 1842 | . . . . . 1842 . . . . . . . . . . . . . . Melee 2478 | . . . . . . 1234 . 377 259 36 90 39 . . 443 . . . . Ramming 100 | . . . . . . . . . . . . 1 . . 99 . . . . Kinetic 3401 | 119 205 126 . 11 2302 . . . . . . . . 368 270 . . . . Thermal . | . . . . . . . . . . . . . . . . . . . . Explosive 1842 | . . . . . 1842 . . . . . . . . . . . . . . Electromagnetic . | . . . . . . . . . . . . . . . . . . . . Impact 443 | . . . . . . . . . . . . . . . 443 . . . . Slashing 2035 | . . . . . . 1234 . 377 259 36 90 39 . . . . . . . Piercing . | . . . . . . . . . . . . . . . . . . . . Highest Corruption 5 | . . . . . . 5 5 5 . . . . . . 3 3 3 3 3 Average Corruption 3 | . . . . . . 3 5 4 . . . . . . 3 3 3 3 3 Corruption Purged 5 | . . . . . . . . 5 . . . . . . . . . . . Corruption Blocked . | . . . . . . . . . . . . . . . . . . . . Effects 26 | . . . . . . 12 3 4 . . . . . . 4 2 . 1 . Message Errors 8 | . . . . . . 3 2 1 . . . . . . 1 1 . . . Matter Fused 8 | . . . . . . 4 . 1 . . . . . . 1 1 . 1 . Heat Flow Errors 2 | . . . . . . 1 1 . . . . . . . . . . . . Energy Discharges 2 | . . . . . . . . 1 . . . . . . 1 . . . . Parts Rejected 1 | . . . . . . . . . . . . . . . 1 . . . . Data Loss (minor) 5 | . . . . . . 4 . 1 . . . . . . . . . . . Overload Shots . | . . . . . . . . . . . . . . . . . . . . Overflow Damage 463 | . . . . . 50 216 . 5 23 . . . . . 169 . . . . Projectiles . | . . . . . . . . . . . . . . . . . . . . Explosions 50 | . . . . . 50 . . . . . . . . . . . . . . Melee 413 | . . . . . . 216 . 5 23 . . . . . 169 . . . . Knockbacks 11 | . . . . . . . . . . . . . . 8 3 . . . . Impact 3 | . . . . . . . . . . . . . . . 3 . . . . Kinetic 8 | . . . . . . . . . . . . . . 8 . . . . . Secondary . | . . . . . . . . . . . . . . . . . . . . Self-Inflicted Damage 212 | . . . . . 164 . . . . . . . . . 48 . . . . Shots 6 | . . . . . 6 . . . . . . . . . . . . . . Rammed 3 | . . . . . . . . . . . . . . . 3 . . . . Targets Rammed 4 | . . . . . . . . . . . . 1 . . 3 . . . . Kicked 1 | . . . . . . . . . . . . 1 . . . . . . . Crushed . | . . . . . . . . . . . . . . . . . . . . Highest Temperature 338 | . . 22 . . 56 338 139 14 . 41 49 4 . . 203 . . . . Average Temperature 47 | . . 12 . . 18 152 73 7 . 28 31 4 . . 73 . . . . Received Heat Transfer 1908 | . . 42 . . 1089 45 . 63 9 72 . 165 . . 396 . . . 27 Siege Activations . | . . . . . . . . . . . . . . . . . . . . Martial Activations . | . . . . . . . . . . . . . . . . . . . . Shielding Activations . | . . . . . . . . . . . . . . . . . . . . Robots Disrupted . | . . . . . . . . . . . . . . . . . . . . Combat Hostiles . | . . . . . . . . . . . . . . . . . . . . Robots Corrupted 2 | . . . . . . . . . . . . . . . 2 . . . . Combat Hostiles . | . . . . . . . . . . . . . . . . . . . . Parts Fried 4 | . . . . . . . . . . . . . . . 4 . . . . Impact Corruptions 6 | . . . . . . . . . . . . . . . 6 . . . . Robots Melted . | . . . . . . . . . . . . . . . . . . . . Combat Hostiles . | . . . . . . . . . . . . . . . . . . . . Parts Melted 1 | . . 1 . . . . . . . . . . . . . . . . . Heat Transferred . | . . . . . . . . . . . . . . . . . . . . Parts Sabotaged . | . . . . . . . . . . . . . . . . . . . . Parts Stolen 7 | . . . . . . . . . . . . . . . . 5 2 . . Parts Stripped . | . . . . . . . . . . . . . . . . . . . . Power Chain Reactions . | . . . . . . . . . . . . . . . . . . . . Alert | -11 -10 -10 -10 -9 -8 -7 -7 -7 -7 -7 -7 -6 -6 -6 -5 -5 -5 -5 -4 ------- Run | Yrd Mat Min Exi Min Mat Fac Was Fac Low Low Dat Pro Fac DSF Fac Upp Upp Zhi Pro Maximum Alert Level 2 | . . . . . 2 1 . 2 . . . . . . . . . . . Low Security (%) 92 | 100 100 100 . 100 87 74 100 77 . . . . 100 100 100 . . . . Level 1 3 | . . . . . 2 25 . 1 . . . . . . . . . . . Level 2 3 | . . . . . 10 . . 20 . . . . . . . . . . . Level 3 . | . . . . . . . . . . . . . . . . . . . . Level 4 . | . . . . . . . . . . . . . . . . . . . . Level 5 . | . . . . . . . . . . . . . . . . . . . . High Security . | . . . . . . . . . . . . . . . . . . . . Max Security . | . . . . . . . . . . . . . . . . . . . . Peak Influence 545 | 5 7 58 . 74 545 255 55 490 . . . . 160 64 65 . . . . Initial 245 | . . . . . . 245 55 . . . . . 160 59 2 . . . . Average 60 | . . 7 . 4 106 176 27 123 . . . . 122 37 12 . . . . Influence Increases 3359 | 10 12 108 . 74 1110 265 30 736 136 260 20 345 5 55 163 . . . 30 Destroy 0b10 Robot/C 1440 | . . 60 . 60 720 40 . 240 100 20 20 60 . 40 80 . . . . Destroy 0b10 Robot/NC 180 | 10 10 . . . 45 50 . 35 . . . . . . 30 . . . . Destroy Leader 356 | . 2 10 . 10 200 30 . 74 20 . . . . . 10 . . . . Allied During Kill 192 | . . 8 . 4 6 . . 158 16 . . . . . . . . . . Successful Hack 65 | . . . . . 29 . . 24 . . . . 5 . 7 . . . . Disable Machine 180 | . . . . . 45 15 . 120 . . . . . . . . . . . Destroy Structure 181 | . . . . . 65 10 30 70 . . . . . . 6 . . . . Partial Spotted 75 | . . . . . . 60 . 15 . . . . . . . . . . . Lose Combat Pursuer 690 | . . 30 . . . 60 . . . 240 . 285 . 15 30 . . . 30 Influence Decreases 3359 | 10 12 108 . 74 569 648 188 256 288 153 455 90 175 136 137 30 . . 30 Entered New Map 1210 | . . . . . . 296 103 . 178 63 435 . 95 26 2 12 . . . Time Decay 1637 | 10 12 108 . 74 439 342 85 156 60 90 . 70 80 . 91 . . . 20 Lost Part 332 | . . . . . 110 10 . . 10 . 20 20 . 110 24 18 . . 10 Lost Ally 180 | . . . . . 20 . . 100 40 . . . . . 20 . . . . Squads Dispatched 26 | . 1 . . . 10 3 . 4 . . . . . 1 6 . . . 1 Investigation 8 | . 1 . . . 4 . . . . . . . . . 3 . . . . Extermination 5 | . . . . . . 3 . 1 . . . . . . 1 . . . . Reinforcement 9 | . . . . . 5 . . 2 . . . . . 1 1 . . . . Assault 1 | . . . . . . . . . . . . . . . . . . . 1 Garrison 3 | . . . . . 1 . . 1 . . . . . . 1 . . . . Intercept . | . . . . . . . . . . . . . . . . . . . . Searches Triggered . | . . . . . . . . . . . . . . . . . . . . Construction Impeded 2 | . . . . . 1 . . 1 . . . . . . . . . . . Haulers Reinforced 1 | . . . . . . . . 1 . . . . . . . . . . . Active Scanning Responses . | . . . . . . . . . . . . . . . . . . . . Cargo Convoy Interrupts . | . . . . . . . . . . . . . . . . . . . . Stealth | -11 -10 -10 -10 -9 -8 -7 -7 -7 -7 -7 -7 -6 -6 -6 -5 -5 -5 -5 -4 --------- Run | Yrd Mat Min Exi Min Mat Fac Was Fac Low Low Dat Pro Fac DSF Fac Upp Upp Zhi Pro Distress Signals 6 | . . . . . 4 . . 2 . . . . . . . . . . . Communications Jammed . | . . . . . . . . . . . . . . . . . . . . Distress Signals . | . . . . . . . . . . . . . . . . . . . . Times Spotted 178 | . 7 5 . 1 48 17 3 13 2 11 4 22 . 7 15 5 3 . 15 Peak Tracking Total 14 | . 2 3 9 1 14 4 3 6 1 12 4 12 . 4 8 3 3 . 11 Tactical Retreats 16 | . . 1 . . . 2 . . . 4 . 6 . 1 1 . . . 1 Traps | -11 -10 -10 -10 -9 -8 -7 -7 -7 -7 -7 -7 -6 -6 -6 -5 -5 -5 -5 -4 ------- Run | Yrd Mat Min Exi Min Mat Fac Was Fac Low Low Dat Pro Fac DSF Fac Upp Upp Zhi Pro Traps Triggered 9 | . . . . . 3 4 . . . . . . . . 2 . . . . Indirectly . | . . . . . . . . . . . . . . . . . . . . Trap Hack Attempts . | . . . . . . . . . . . . . . . . . . . . Triggered . | . . . . . . . . . . . . . . . . . . . . Disarmed . | . . . . . . . . . . . . . . . . . . . . Reprogrammed . | . . . . . . . . . . . . . . . . . . . . Reused . | . . . . . . . . . . . . . . . . . . . . Traps Extracted . | . . . . . . . . . . . . . . . . . . . . Installed . | . . . . . . . . . . . . . . . . . . . . Triggered . | . . . . . . . . . . . . . . . . . . . . Machines | -11 -10 -10 -10 -9 -8 -7 -7 -7 -7 -7 -7 -6 -6 -6 -5 -5 -5 -5 -4 ---------- Run | Yrd Mat Min Exi Min Mat Fac Was Fac Low Low Dat Pro Fac DSF Fac Upp Upp Zhi Pro Machines Disabled 16 | . . . 3 . 3 1 . 8 1 . . . . . . . . . . Max in Single Turn 2 | . . . 2 . 1 1 . 1 1 . . . . . . . . . . Garrison Access 2 | . . . . . . 1 . 1 . . . . . . . . . . . Machines Repaired . | . . . . . . . . . . . . . . . . . . . . Machines Dismantled . | . . . . . . . . . . . . . . . . . . . . Machines Sabotaged . | . . . . . . . . . . . . . . . . . . . . Overloaded Fab Kills . | . . . . . . . . . . . . . . . . . . . . Hacking | -11 -10 -10 -10 -9 -8 -7 -7 -7 -7 -7 -7 -6 -6 -6 -5 -5 -5 -5 -4 --------- Run | Yrd Mat Min Exi Min Mat Fac Was Fac Low Low Dat Pro Fac DSF Fac Upp Upp Zhi Pro Machines Accessed 36 | . 3 . 2 . 5 8 . 3 . 1 3 . 1 . 6 . . 4 . Terminals 15 | . 2 . . . 4 2 . 2 . . . . 1 . 4 . . . . Fabricators 4 | . . . . . . 3 . . . . . . . . 1 . . . . Repair Stations . | . . . . . . . . . . . . . . . . . . . . Recycling Units 2 | . 1 . . . . . . . . . . . . . 1 . . . . Scanalyzers . | . . . . . . . . . . . . . . . . . . . . Garrison Access 5 | . . . . . 1 3 . 1 . . . . . . . . . . . Total Hacks 102 | . 6 . 2 . 17 15 . 6 . 1 23 . 1 . 18 . . 13 . Successful 55 | . 1 . 2 . 5 3 . 2 . 1 23 . 1 . 4 . . 13 . Failed 47 | . 5 . . . 12 12 . 4 . . . . . . 14 . . . . Catastrophic 16 | . 2 . . . 2 4 . 3 . . . . . . 5 . . . . Database Lockouts . | . . . . . . . . . . . . . . . . . . . . Manual 29 | . 3 . 1 . 10 4 . 2 1 . . . . . 8 . . . . Terminals 42 | . 4 . . . 14 8 . 3 . . . . 1 . 12 . . . . Fabricators 8 | . . . . . . 4 . . . . . . . . 4 . . . . Repair Stations . | . . . . . . . . . . . . . . . . . . . . Recycling Units 4 | . 2 . . . . . . . . . . . . . 2 . . . . Scanalyzers . | . . . . . . . . . . . . . . . . . . . . Garrison Access 9 | . . . . . 3 3 . 3 . . . . . . . . . . . Terminal Hacks 44 | . . . 2 . 2 . . 1 . 1 23 . 1 . 1 . . 13 . Record 12 | . . . 1 . . . . . . . 6 . . . . . . 5 . Part Schematic 14 | . . . . . . . . . . . 10 . . . . . . 4 . Robot Schematic 4 | . . . . . . . . . . . 4 . . . . . . . . Prototype ID Bank 7 | . . . . . . . . . . . 3 . . . . . . 4 . Open Door 1 | . . . . . . . . . . 1 . . . . . . . . . Open DSF 1 | . . . . . . . . . . . . . 1 . . . . . . Level Access Points 1 | . . . . . . . . 1 . . . . . . . . . . . Branch Access Points 2 | . . . . . 1 . . . . . . . . . 1 . . . . Patrol Status 1 | . . . . . 1 . . . . . . . . . . . . . . Proto ID Catalog 1 | . . . 1 . . . . . . . . . . . . . . . . Fabricator Hacks 3 | . . . . . . 2 . . . . . . . . 1 . . . . Network Status 2 | . . . . . . 2 . . . . . . . . . . . . . Load Schematic 1 | . . . . . . . . . . . . . . . 1 . . . . Repair Station Hacks . | . . . . . . . . . . . . . . . . . . . . Recycling Unit Hacks 3 | . 1 . . . . . . . . . . . . . 2 . . . . Process 1 | . . . . . . . . . . . . . . . 1 . . . . Retrieve Matter 1 | . . . . . . . . . . . . . . . 1 . . . . Retrieve Components 1 | . 1 . . . . . . . . . . . . . . . . . . Scanalyzer . | . . . . . . . . . . . . . . . . . . . . Garrison Access Hacks 2 | . . . . . . 1 . 1 . . . . . . . . . . . Seal Access 2 | . . . . . . 1 . 1 . . . . . . . . . . . Unauthorized Hacks 3 | . . . . . 3 . . . . . . . . . . . . . . Terminals 3 | . . . . . 3 . . . . . . . . . . . . . . Botnet 1 | . . . . . 1 . . . . . . . . . . . . . . Skim 2 | . . . . . 2 . . . . . . . . . . . . . . Fabricators . | . . . . . . . . . . . . . . . . . . . . Repair Stations . | . . . . . . . . . . . . . . . . . . . . Recycling Units . | . . . . . . . . . . . . . . . . . . . . Scanalyzers . | . . . . . . . . . . . . . . . . . . . . Garrison Access . | . . . . . . . . . . . . . . . . . . . . Data Cores Recovered . | . . . . . . . . . . . . . . . . . . . . Used . | . . . . . . . . . . . . . . . . . . . . Hacking Detections 22 | . 3 . . . 5 7 . 2 . . . . . . 5 . . . . Full Trace Events 6 | . 1 . . . 2 . . . . . . . . . 3 . . . . Feedback Events . | . . . . . . . . . . . . . . . . . . . . Feedback Blocked . | . . . . . . . . . . . . . . . . . . . . Robot Schematics Acquired 4 | . . . . . . . . . . . 4 . . . . . . . . Robots Built . | . . . . . . . . . . . . . . . . . . . . Authchips . | . . . . . . . . . . . . . . . . . . . . Time . | . . . . . . . . . . . . . . . . . . . . Total Robot Build Rating . | . . . . . . . . . . . . . . . . . . . . Part Schematics Acquired 14 | . . . . . . . . . . . 10 . . . . . . 4 . Parts Built . | . . . . . . . . . . . . . . . . . . . . Authchips . | . . . . . . . . . . . . . . . . . . . . Time . | . . . . . . . . . . . . . . . . . . . . Total Part Build Rating . | . . . . . . . . . . . . . . . . . . . . Parts Repaired . | . . . . . . . . . . . . . . . . . . . . Time . | . . . . . . . . . . . . . . . . . . . . Parts Recycled . | . . . . . . . . . . . . . . . . . . . . Recycled Matter 20 | . . . . . . . . . . . . . . . 20 . . . . Retrieved Matter 20 | . . . . . . . . . . . . . . . 20 . . . . Retrieved Components 5 | . 5 . . . . . . . . . . . . . . . . . . Parts Scanalyzed . | . . . . . . . . . . . . . . . . . . . . Part Schematics Acquired . | . . . . . . . . . . . . . . . . . . . . Parts Damaged . | . . . . . . . . . . . . . . . . . . . . Bothacking | -11 -10 -10 -10 -9 -8 -7 -7 -7 -7 -7 -7 -6 -6 -6 -5 -5 -5 -5 -4 ------------ Run | Yrd Mat Min Exi Min Mat Fac Was Fac Low Low Dat Pro Fac DSF Fac Upp Upp Zhi Pro Used RIF Installer . | . . . . . . . . . . . . . . . . . . . . Robots Hacked . | . . . . . . . . . . . . . . . . . . . . Non-combat . | . . . . . . . . . . . . . . . . . . . . Combat . | . . . . . . . . . . . . . . . . . . . . Robot Hacks Applied . | . . . . . . . . . . . . . . . . . . . . Relay Couplers Released . | . . . . . . . . . . . . . . . . . . . . Fabnet Peak Effective % . | . . . . . . . . . . . . . . . . . . . . Robots Rewired . | . . . . . . . . . . . . . . . . . . . . Allies Hacked . | . . . . . . . . . . . . . . . . . . . . Hacks Repelled . | . . . . . . . . . . . . . . . . . . . . Allies | -11 -10 -10 -10 -9 -8 -7 -7 -7 -7 -7 -7 -6 -6 -6 -5 -5 -5 -5 -4 -------- Run | Yrd Mat Min Exi Min Mat Fac Was Fac Low Low Dat Pro Fac DSF Fac Upp Upp Zhi Pro Total Allies 21 | . . 3 . . . . 18 . . . . . . . . . . . . Largest Group 18 | . . 3 3 1 1 . 18 12 7 . . . . . . . . . . Highest-Rated Group 434 | . . 40 40 16 16 . 434 350 187 . . . . . . . . . . Highest-Rated Ally 35 | . . 16 16 16 16 . 35 35 31 . . . . . . . . . . Total Orders 4 | . . . 3 . . . . . . . . . . . 1 . . . . STAY 1 | . . . 1 . . . . . . . . . . . . . . . . ROAM 1 | . . . 1 . . . . . . . . . . . . . . . . FOLLOW 1 | . . . 1 . . . . . . . . . . . . . . . . EXPLORE 1 | . . . . . . . . . . . . . . . 1 . . . . Ally Attacks 235 | . . 15 8 8 20 . 100 73 11 . . . . . . . . . . Total Damage 5881 | . . 193 72 68 217 . 2975 2112 244 . . . . . . . . . . Kills 38 | . . 1 1 3 2 . 12 16 3 . . . . . . . . . . Allies Corrupted . | . . . . . . . . . . . . . . . . . . . . Allies Melted . | . . . . . . . . . . . . . . . . . . . . Intel | -11 -10 -10 -10 -9 -8 -7 -7 -7 -7 -7 -7 -6 -6 -6 -5 -5 -5 -5 -4 ------- Run | Yrd Mat Min Exi Min Mat Fac Was Fac Low Low Dat Pro Fac DSF Fac Upp Upp Zhi Pro Active Infowar (turns) 6919 | 19 400 881 912 1262 1435 762 214 298 138 191 3 6 162 90 146 . . . . Optics 843 | . . . . . . 755 64 . . . . . . 24 . . . . . Sensors 2800 | . . . . . 831 721 214 298 138 191 3 6 162 90 146 . . . . Structural 997 | . . . . . 997 . . . . . . . . . . . . . . Seismic 4077 | 19 400 881 912 1262 603 . . . . . . . . . . . . . . Robot Analysis Total 151 | . . . . . . . . . . . 151 . . . . . . . . Derelict Logs Recovered 7 | . . 3 . 1 . . . . 1 1 . . . . . 1 . . . Drone Launches 2 | . . . . . . . . . . . . . . . 2 . . . . Drone Recoveries . | . . . . . . . . . . . . . . . . . . . . Exploration | -11 -10 -10 -10 -9 -8 -7 -7 -7 -7 -7 -7 -6 -6 -6 -5 -5 -5 -5 -4 ------------- Run | Yrd Mat Min Exi Min Mat Fac Was Fac Low Low Dat Pro Fac DSF Fac Upp Upp Zhi Pro Turns Passed 8146 | 172 400 881 912 1262 1435 762 214 371 138 191 39 141 166 186 488 135 97 75 81 Spaces Moved 7059 | 92 211 523 373 510 583 1209 251 644 284 547 111 250 159 139 501 189 189 133 161 Core 730 | 14 . . . . . . . . . . . . . . 44 189 189 133 161 Treads 2278 | 78 211 523 373 510 583 . . . . . . . . . . . . . . Legs 525 | . . . . . . . . . . . . 250 159 116 . . . . . Wheels . | . . . . . . . . . . . . . . . . . . . . Hover 2450 | . . . . . . 822 251 644 284 449 . . . . . . . . . Flight 1076 | . . . . . . 387 . . . 98 111 . . 23 457 . . . . Fastest Speed 19 | 50 160 160 160 240 160 31 32 32 32 27 19 45 90 36 19 50 50 50 50 Average Speed 88 | 143 160 160 236 240 170 33 32 32 32 31 26 45 90 75 36 50 50 50 50 Slowest Speed 250 | 160 160 160 240 240 250 170 34 32 32 32 106 90 90 125 154 50 50 50 50 Overloaded Moves 288 | . . . . . . . . . . . 20 247 . 21 . . . . . Propulsion Burnouts . | . . . . . . . . . . . . . . . . . . . . Robots Hopped 2 | . . . . . . . . . . . . . . . 2 . . . . Potential Cave-ins . | . . . . . . . . . . . . . . . . . . . . Cave-ins Triggered . | . . . . . . . . . . . . . . . . . . . . Exploration Rate (%) 53 | 4 48 100 69 97 50 40 95 25 53 69 78 53 6 92 18 35 45 60 33 Regions Visited 19 Branch Regions 11 Pre-discovered Areas 34 | . . 2 1 . . . . . . . 28 . . . . . . 3 . Known Exits Taken 9 | . . . 1 . 1 . . 1 1 1 1 1 1 . 1 . . . . Unknown Exits Taken 7 | 1 1 1 . 1 . . . . . . . . . . . 1 1 1 . Scrap Searched 8 | . . 3 . 2 . . . . . 2 . . . . . . 1 . . Spaces Dug 13 | . . . . . . 10 . . . . . . . . 3 . . . . Terrain Destroyed 92 | . . . 11 . 68 10 . . . . . . . . 3 . . . . Melee 13 | . . . . . . 10 . . . . . . . . 3 . . . . Projectile 6 | . . . . . 6 . . . . . . . . . . . . . . AOE 73 | . . . 11 . 62 . . . . . . . . . . . . . . Terrain Rammed . | . . . . . . . . . . . . . . . . . . . . Walls Destroyed . | . . . . . . . . . . . . . . . . . . . . Machines Disabled . | . . . . . . . . . . . . . . . . . . . . Actions | -11 -10 -10 -10 -9 -8 -7 -7 -7 -7 -7 -7 -6 -6 -6 -5 -5 -5 -5 -4 --------- Run | Yrd Mat Min Exi Min Mat Fac Was Fac Low Low Dat Pro Fac DSF Fac Upp Upp Zhi Pro Total 8561 | 119 259 558 402 547 837 1511 384 792 317 568 120 267 178 199 781 230 191 140 161 Wait 818 | 1 6 27 18 34 51 166 113 119 23 3 . 3 9 6 204 34 1 . . Move 7037 | 91 210 522 372 509 582 1209 250 643 283 546 110 249 158 138 496 188 188 132 161 Hop 2 | . . . . . . . . . . . . . . . 2 . . . . Pick Up 151 | 13 13 2 7 3 29 25 7 6 1 3 2 1 3 17 8 4 1 6 . Fast Attach 33 | 1 . . . . 10 11 . 2 . 1 . . . 2 6 . . . . Attach 69 | 6 . . . . 8 11 1 . 1 5 3 5 4 14 9 . . 2 . Detach 11 | . . . . . . 2 . . . 1 3 1 2 2 . . . . . Swap 41 | 1 4 . 3 . 14 5 5 5 1 1 . . . . 2 . . . . Drop 132 | . 15 2 . . 28 37 8 8 1 7 1 1 . 2 17 4 1 . . Fire 174 | 6 11 5 2 1 114 . . . . . . 4 2 18 11 . . . . Melee 67 | . . . . . 1 38 . 9 7 1 1 2 . . 8 . . . . Ram 3 | . . . . . . . . . . . . . . . 3 . . . . Kick 1 | . . . . . . . . . . . . 1 . . . . . . . Crush . | . . . . . . . . . . . . . . . . . . . . Escape Stasis 22 | . . . . . . 7 . . . . . . . . 15 . . . . Rewire . | . . . . . . . . . . . . . . . . . . . . Trap . | . . . . . . . . . . . . . . . . . . . . Miscellaneous . | . . . . . . . . . . . . . . . . . . . . Route ------- -11/Scrapyard -10/Materials (discovered 2 exits: [*Mat] / [*Min]) -10/Mines (discovered 4 exits: [*Mat x2] / *Exi / [*Sub]) -10/Exiles (discovered 2 exits: *Min x2) -9/Mines (discovered 2 exits: *Mat x2) -8/Materials (discovered 2 exits: *Fac / Sto) -7/Factory -7/Waste -7/Factory (discovered 5 exits: Fac x4 / *Low) -7/Lower Caves -7/Lower Caves (discovered 2 exits: *Fac / *Dat) -7/Data Miner -6/Proximity Caves -6/Factory (discovered 2 exits: Low / DSF) -6/DSF -5/Factory (discovered 2 exits: *Upp x2) -5/Upper Caves -5/Upper Caves -5/Zhirov -4/Proximity Caves History --------- Turn | Location | Event 9 | -11/Scrapyard | Discovered new exit (range 16) 173 | -11/Scrapyard | Entered Materials 310 | -10/Materials | Build established: Mutant 505 | -10/Materials | Discovered new exit (range 4) 567 | -10/Materials | Discovered new exit (range 5) 573 | -10/Materials | Entered Mines 649 | -10/Mines | Deemed a non-threat by the Exiles lab entrance 649 | -10/Mines | Discovered new exit (range 5) 677 | -10/Mines | Learned location of Storage (-8) 689 | -10/Mines | Discovered new exit (range 15) 690 | -10/Mines | Discovered new exit (range 5) 697 | -10/Mines | Received a Rocket Launcher from a helpful Derelict 733 | -10/Mines | Discovered new exit (range 6) 957 | -10/Mines | Found a hidden stash of uninstalled traps 1057 | -10/Mines | Assisted by bots powering up and referring to "LRC-V3" 1454 | -10/Mines | Entered Exiles 1454 | -10/Exiles | Accompanied by 3 allies 1455 | -10/Exiles | Identified exit to Mines 1524 | -10/Exiles | Met 8R-AWN 1562 | -10/Exiles | Met EX-HEX 1673 | -10/Exiles | Met EX-DEC 1716 | -10/Exiles | Learned location of Zion (-6) 1867 | -10/Exiles | Met EX-BIN 1901 | -10/Exiles | Aligned with FarCom system 1903 | -10/Exiles | Given EX-Vault access code 1958 | -10/Exiles | Opened EX-Vault 1973 | -10/Exiles | Found PSU Rigger 1983 | -10/Exiles | Found Modified TNC 1994 | -10/Exiles | Found Potential Leg 1997 | -10/Exiles | Found Potential Leg 2044 | -10/Exiles | Warned to stay clear of 0b10 Research branches 2323 | -10/Exiles | Attacked by the Exiles 2366 | -10/Exiles | Stole three prototypes: Potential Leg, Modified TNC, PSU Rigger 2366 | -10/Exiles | Entered Mines 2366 | -9/Mines | Accompanied by 1 ally 2499 | -9/Mines | Learned Materials emergency access door positions 2530 | -9/Mines | Discovered new exit (range 9) 2583 | -9/Mines | Discovered new exit (range 13) 3185 | -9/Mines | Found a damaged Exp. Sensor Array with a note attached 3190 | -9/Mines | Found Prototype Device 3488 | -9/Mines | A weapon hastily lodged in a ceiling crevice suddenly fell to the ground 3628 | -9/Mines | Entered Materials 3628 | -8/Materials | Accompanied by 1 ally 3628 | -8/Materials | Evolved 4 slots: Propulsion x2, Utility x2 3629 | -8/Materials | Identified exit to Storage 4232 | -8/Materials | Identified Exp. Sensor Array 4531 | -8/Materials | Build established: Skirmisher 4708 | -8/Materials | Lost 3 parts (2n1u) 4742 | -8/Materials | Garrison activated, responded to threat 4871 | -8/Materials | Discovered new exit (range 16) 4928 | -8/Materials | Identified exit to Factory 4942 | -8/Materials | Destroyed 18 combat bots 4946 | -8/Materials | Lost 3 parts (1n1u1w) 5063 | -8/Materials | Entered Factory 5063 | -7/Factory | Evolved 2 slots: Propulsion x1, Utility x1 5376 | -7/Factory | Build established: Scout 5735 | -7/Factory | Discovered new exit (range 20) 5825 | -7/Factory | Sucked down chute 5825 | -7/Factory | Entered Waste 5828 | -7/Waste | Spotted C-40 Crusher 5834 | -7/Waste | Warlord forces began an assault 5863 | -7/Waste | Spotted C-40 Crusher 5864 | -7/Waste | Allies destroyed C-40 Crusher 5876 | -7/Waste | Allies destroyed C-40 Crusher 5886 | -7/Waste | Spotted C-40 Crusher 5887 | -7/Waste | Spotted C-40 Crusher 5896 | -7/Waste | Allies destroyed C-40 Crusher 5897 | -7/Waste | Spotted C-40 Crusher 5900 | -7/Waste | Allies destroyed C-40 Crusher 5912 | -7/Waste | Spotted C-40 Crusher 5916 | -7/Waste | Allies destroyed C-40 Crusher 5927 | -7/Waste | Lost 6 allies 5938 | -7/Waste | Discovered new exit (range 14) 5947 | -7/Waste | Identified exit to Factory 6039 | -7/Waste | Entered Factory 6039 | -7/Factory | Accompanied by 12 allies 6140 | -7/Factory | Identified exit to Factory 6210 | -7/Factory | Build established: Sprinter 6308 | -7/Factory | Garrison activated, responded to threat 6352 | -7/Factory | Discovered new exit (range 8) 6354 | -7/Factory | Identified exit to Lower Caves 6410 | -7/Factory | Entered Lower Caves 6410 | -7/Lower Caves | Accompanied by 7 allies 6485 | -7/Lower Caves | Learned location of 1 exit from Factory 6533 | -7/Lower Caves | Discovered new exit (range 3) 6534 | -7/Lower Caves | Identified exit to Lower Caves 6540 | -7/Lower Caves | Acquired the password to a Derelict Tinkerer's latest research 6543 | -7/Lower Caves | Found Prototype Special Weapon 6548 | -7/Lower Caves | Entered another Lower Caves area 6590 | -7/Lower Caves | Discovered exit to Factory (range 10) 6679 | -7/Lower Caves | Encountered a Warlord checkpoint 6692 | -7/Lower Caves | Learned 8 Factory zone layouts 6696 | -7/Lower Caves | Found DCF Scrap (12 items) 6734 | -7/Lower Caves | Discovered new exit (range 8) 6736 | -7/Lower Caves | Identified exit to Data Miner 6739 | -7/Lower Caves | Entered Data Miner 6741 | -7/Data Miner | Discovered new exit (range 6) 6747 | -7/Data Miner | Met Data Miner 6751 | -7/Data Miner | Learned location of Section 7 (-2) 6751 | -7/Data Miner | Acquired the access code to Warlord's prototype stash 6755 | -7/Data Miner | Received God Mode back door access code from Data Miner 6763 | -7/Data Miner | Destroyed Data Miner 6766 | -7/Data Miner | Interfaced with the Data Conduit 6766 | -7/Data Miner | Found Prototype Hackware 6769 | -7/Data Miner | Found Prototype Hackware 6778 | -7/Data Miner | Identified exit to Proximity Caves 6778 | -7/Data Miner | Entered Proximity Caves 6783 | -6/Proximity Caves | Core integrity fell below 50% 6791 | -6/Proximity Caves | Identified Molecular Deconstructor 6822 | -6/Proximity Caves | Lost 7 parts (4n1u2w) 6838 | -6/Proximity Caves | Core integrity fell below 20% 6898 | -6/Proximity Caves | Spotted B-75 Beast 6916 | -6/Proximity Caves | Discovered exit to Factory (range 6) 6919 | -6/Proximity Caves | Entered Factory 6919 | -6/Factory | Evolved 2 slots: Propulsion x1, Utility x1 6920 | -6/Factory | Identified exit to Lower Caves 6922 | -6/Factory | Loaded intel: 309 machine locations 7077 | -6/Factory | Build established: Mutant 7085 | -6/Factory | Identified exit to DSF 7085 | -6/Factory | Entered DSF 7086 | -6/DSF | Loaded intel: 3 machine locations 7134 | -6/DSF | Additional patrols routed to DSF 7147 | -6/DSF | Discovered new exit (range 16) 7247 | -6/DSF | Lost 9 parts (1p5n2u1w) 7271 | -6/DSF | Entered Factory 7271 | -5/Factory | Evolved 2 slots: Propulsion x1, Utility x1 7272 | -5/Factory | Loaded intel: 290 machine locations 7517 | -5/Factory | Garrison activated, responded to threat 7701 | -5/Factory | Identified exit to Upper Caves 7759 | -5/Factory | Entered Upper Caves 7759 | -5/Upper Caves | Spotted CJ-MRG(f) 7759 | -5/Upper Caves | Spotted FS-1LN(f) 7760 | -5/Upper Caves | PSU Rigger stolen by Master Thief 7761 | -5/Upper Caves | Encountered a Master Thief 7761 | -5/Upper Caves | Encountered a Master Thief 7763 | -5/Upper Caves | Spotted 54-XNP(f) 7764 | -5/Upper Caves | Encountered a Master Thief 7773 | -5/Upper Caves | Imp. Sensor Array stolen by Master Thief 7792 | -5/Upper Caves | Modified TNC stolen by Master Thief 7797 | -5/Upper Caves | Lost 15 parts (9n6u) 7888 | -5/Upper Caves | Discovered new exit (range 10) 7889 | -5/Upper Caves | Learned 4 Factory zone layouts 7893 | -5/Upper Caves | Encountered a Warlord checkpoint 7894 | -5/Upper Caves | Entered another Upper Caves area 7976 | -5/Upper Caves | Spotted UH-65R(f) 7978 | -5/Upper Caves | Encountered a Master Thief 7979 | -5/Upper Caves | Spotted XU-T6G(f) 7979 | -5/Upper Caves | Spotted NP-7QA(f) 7980 | -5/Upper Caves | Encountered a Master Thief 7980 | -5/Upper Caves | Encountered a Master Thief 7980 | -5/Upper Caves | Prototype Hackware stolen by Master Thief 7983 | -5/Upper Caves | Prototype Hackware stolen by Master Thief 7987 | -5/Upper Caves | Discovered new exit (range 9) 7991 | -5/Upper Caves | Entered Zhirov 7991 | -5/Zhirov | Discovered new exit (range 3) 8001 | -5/Zhirov | Met Zhirov 8016 | -5/Zhirov | Zhirov requested help retrieving the SGEMP Prototype 8024 | -5/Zhirov | Found Alien Artifact 8025 | -5/Zhirov | Identified Integrated Dissipator 8025 | -5/Zhirov | Installed Integrated Dissipator, increased core heat dissipation (+20) 8046 | -5/Zhirov | Found Alien Artifact 8066 | -5/Zhirov | Entered Proximity Caves 8086 | -4/Proximity Caves | Attracted the attention of an 0b10 outpost 8099 | -4/Proximity Caves | Core integrity fell below 50% 8137 | -4/Proximity Caves | Core integrity fell below 20% 8147 | -4/Proximity Caves | Destroyed by S-27 Virus with Autogun Last Messages --------------- 08033_ Acquired Adv. Hacking Suite. 08035_ Acquired Adv. Energy Well. 08037_ Acquired Prc. Matter Filter. 08038_ Acquired Exp. Core Shielding. 08046_ Acquired Alien Artifact. LOCATION=UNKNOWN GOAL=ESCAPE 08086_ Y-72 Warden: "DETECTED UNIDENTIFIED DERELICT." 08090_ Y-72 Warden: "REQUESTING BACKUP." 08122_ Exp. Core Shielding destroyed. 08129_ N-01 Spotter destroyed. 08133_ S-27 Virus destroyed. 08136_ C-30 ARC bursts open, deploying its payload. 08136_ G-73 Enforcer unfolds itself. 08136_ B-60 Warrior unfolds itself. 08136_ L-61 Swordsman unfolds itself. 08136_ B-60 Warrior unfolds itself. 08136_ E-15 Imp unfolds itself. 08136_ E-15 Imp destroyed. 08141_ Propulsion Shielding fries itself beyond repair. Map ----- +----------------------------------------------------+ | ????? #? ???????????????????????????????????? | | ##### ## ???????????????????????????????????? | | # ??????##????????????????????????????? | | ?????? ???????????????????????????? | | #???? ?????? #???????????????????????????? | | #????? ?????? ##??????????????????????????? | | = #????? #???? ###????????????????????????? | | ####### #???# #????????????????????????? | | #??? ?????????????????????????? | | #????## ??????????????????????????? | | #### #???## #???????????????????????????? | | ### #??# #??## #????????????????????????????? | | ??# #??# #?## #????###?????????????????????? | | ?## #### #?# #???## #?????????????????????? | | ## ### ##### #?????????????????????? | | # %* ## #?????????????????????? | | =%" s #?????????????????????? | | # ## ## #?????????????????????? | | ## ### #?????????????????????? | | ?# #?# l ###s #?????????????????????? | | # #?# #?# #?????????????????????? | | ## s## #?????????????????????? | | ## ## s #?????????????????????? | | #?#### #?????????????????????? | | #????# ##?????????????????????? | | #????# ## @#??????????????????????? | | ?????# ### ?????????????????????? | | ?????# ## #####?# ???????????????????? | | ?????? ?##??????# ########??????????????????? | | ?????????????????## ###?????????????????????????? | | ??????????????????# #????????????????????????????? | | ?????????????????# ?????????????????????????????? | | ???????????????? ?????????????????????????????? | | ??????????????? ?????????????????????????????? | | ?????????????? ??????????????????????????????? | | ?????????????? ???????????????????????????????? | | ??????????????? ?????????????????????????????????? | | ?????????????????????????????????????????????????? | | ?????????????????????????????????????????????????? | | ?????????????????????????????????????????????????? | | ?????????????????????????????????????????????????? | | ?????????????????????????????????????????????????? | | ?????????????????????????????????????????????????? | | ?????????????????????????????????????????????????? | | ?????????????????????????????????????????????????? | | ?????????????????????????????????????????????????? | | ?????????????????????????????????????????????????? | | ?????????????????????????????????????????????????? | | ?????????????????????????????????????????????????? | | ?????????????????????????????????????????????????? | +----------------------------------------------------+ Best States ------------- Heat Dissipation 67 Energy Generation 21 Energy Capacity 325 Matter Stores 300 Matter Capacity 300 Sight Range 22 Robot Scan Range 20 Terrain Scan Density 10 Power Amplification 20 Armor Coverage 225 Core Shielding 40 Evasion (%) 66 Melee Accuracy 12 Recoil Reduction 4 Offensive Hacking 10 Defensive Hacking 20 Authchip Count 1 Item Schematics ----------------- Combat Drone Bay | -7/Data Miner | Free Lgt. Regenerative Plating | -7/Data Miner | Free Biomechanical Wings | -7/Data Miner | Free Exp. Targeting Computer | -7/Data Miner | Free Hvy. Treads | -7/Data Miner | Free Cld. Plasma Cannon | -7/Data Miner | Free Lance | -7/Data Miner | Free Adv. Salvage Targeting Computer | -7/Data Miner | Free Imp. System Shield | -7/Data Miner | Free Nuclear Pulse Array | -7/Data Miner | Free Assault Drone Bay | -5/Zhirov | Free Exp. Heat Sink | -5/Zhirov | Free Exp. Optical Array | -5/Zhirov | Free Imp. Arc Thrower | -5/Zhirov | Free Robot Schematics ------------------ S-27 Virus | -7/Data Miner | Free B-48 Gladiator | -7/Data Miner | Free L-41 Fighter | -7/Data Miner | Free A-15 Conveyor | -7/Data Miner | Free Fabricated ------------ Nothing Repaired ---------- Nothing Alien Tech Used ----------------- Integrated Dissipator Achievements -------------- None Challenges ------------ None Game ------ Seed QuantumMagneticRegenerator Manual? 0 Play Time 01:14:43 Cumulative 294.9 hours Start 2025.09.16 @ 23:57:47 End 2025.09.17 @ 03:38:28 Sessions 2 Manual Loads 0 Difficulty Rogue Special Mode None Game No. 416 Rogue 416 Adventurer 0 Explorer 0 Win Type - Total 9 Types 5/0/1/2/1/0/0/0/0/0 Lore% 86 Gallery% 81 Achievement% 64 Wizard Run 0 Options --------- Layout 0 ASCII 0 Keyboard 0 Movement Mouse Keybinds 0 Fullscreen 1 Font 24/Tamsyn Map View 76x50 Zoom Use 0% Tactical HUD 1 Map Filters NONE Filters NONE Steam 1 RUN: 8b446197-eefa-457f-b16f-39d32b6d1390